Business Unit,Business Code,Service Code,Service Label ,Organisational Unit,Expenditure   ,Payment Date,Net Payment ,Transaction Number,Supplier ID,Supplier Name
North West Leicestershire District Council,31UH,EEHL,Environmental Health,Environmental Health & Licensing,Grants,04/12/2013,"1,430.00",1272336,A041006,MJ Kent
North West Leicestershire District Council,31UH,EXCH,Finance,Exchequer Services,Agency Staff,04/12/2013,"8,075.62",1272369,A036958,Comensura Limited
North West Leicestershire District Council,31UH,EES,Environmental Health,Environmental Services,Stray Dog Service,04/12/2013,"1,032.07",1272493,A000385,College Garth Boarding Kennels
North West Leicestershire District Council,31UH,ICT,Information Technology,ICT Services,Photo Copier - Copy Charges Rental,04/12/2013,"1,683.32",1272510,A040459,Canon UK Ltd
North West Leicestershire District Council,31UH,ICT,Information Technology,ICT Services,Photo Copier - Copy Charges Rental,03/12/2013,722.81,1272538,A001301,The Danwood Group Ltd
North West Leicestershire District Council,31UH,NACCS,Neighbourhoods & Communities,N & C Community Safety,Extended Services,04/12/2013,"1,840.00",1272661,A039549,Mair Health
North West Leicestershire District Council,31UH,EXCH,Finance,Exchequer Services,Agency Staff,11/12/2013,"12,213.03",1272702,A036958,Comensura Limited
North West Leicestershire District Council,31UH,ESS,Street Management,Environment - Street Scene,Private Owners,11/12/2013,"7,820.40",1272704,A000950,Leicestershire County Council
North West Leicestershire District Council,31UH,EXCH,Finance,Exchequer Services,Computing,11/12/2013,"2,301.95",1272716,A010859,Selima Limited
North West Leicestershire District Council,31UH,HRAOPS,Housing,HRA Older Persons Service,Water Charges (Metered),11/12/2013,"1,793.92",1272771,A001468,Severn Trent Water Limited
North West Leicestershire District Council,31UH,PROPCL,Property Services,Property Commercial Lettings,Telephones,11/12/2013,685.58,1272817,A000233,British Telecommunications Plc
North West Leicestershire District Council,31UH,EES,Environmental Health,Environmental Services,Grants,11/12/2013,"1,660.00",1272870,A038469,Leicestershire County Council
North West Leicestershire District Council,31UH,EES,Environmental Health,Environmental Services,Grants,11/12/2013,"2,757.90",1273247,A001092,John Merison BMC Ltd
North West Leicestershire District Council,31UH,CULTYP,Leisure & Culture,Cultural Services Children & YoungPeople,Extended Services,11/12/2013,"2,678.94",1273255,A000780,Homestart (N.W. Leics)
North West Leicestershire District Council,31UH,CULTYP,Leisure & Culture,Cultural Services Children & YoungPeople,Extended Services,11/12/2013,"1,685.00",1273259,A039090,Safe Start-Home Safety
North West Leicestershire District Council,31UH,PROPFM,Property Services,Property Facilities Management,Electricity,11/12/2013,"4,023.72",1273347,A030266,Southern Electric
North West Leicestershire District Council,31UH,HR,Corporate Director,Human Resources,Computing,11/12/2013,"9,500.00",1273363,A041028,Josiah Hincks Solicitors
North West Leicestershire District Council,31UH,HRAHRM,Housing Repairs,HRA Housing Repairs & Maintenance,Decent Homes Programme,18/12/2013,"648,133.25",1273469,A039980,Kier Services Maintenance East Ltd
North West Leicestershire District Council,31UH,HRAHRM,Housing Repairs,HRA Housing Repairs & Maintenance,Decent Homes Programme,18/12/2013,"4,380.50",1273471,A039980,Kier Services Maintenance East Ltd
North West Leicestershire District Council,31UH,HRAHRM,Housing Repairs,HRA Housing Repairs & Maintenance,Decent Homes Programme,18/12/2013,"13,927.21",1273472,A039973,Lovell Partnerships Ltd
North West Leicestershire District Council,31UH,HRAHRM,Housing Repairs,HRA Housing Repairs & Maintenance,Decent Homes Programme,18/12/2013,"741,049.70",1273473,A039973,Lovell Partnerships Ltd
North West Leicestershire District Council,31UH,NACCS,Neighbourhoods & Communities,N & C Community Safety,Grants,18/12/2013,"4,905.00",1273474,A035295,Home-Start NWL
North West Leicestershire District Council,31UH,HPLC,Leisure Centres,Hood Park Leisure Centre,Water Charges (Metered),18/12/2013,842.65,1273485,A001468,Severn Trent Water Limited
North West Leicestershire District Council,31UH,CULTEV,Leisure & Culture,Cultural Services Arts & Events,Theatre Tickets,18/12/2013,"3,775.50",1273497,A034672,Ashby Dramatic Society
North West Leicestershire District Council,31UH,EES,Environmental Health,Environmental Services,Tree Officer,18/12/2013,"1,372.92",1273498,A000770,Hinckley & Bosworth Borough Council
North West Leicestershire District Council,31UH,FINPLA,Finance,Financial Planning,Collection - Cash,18/12/2013,"1,099.35",1273506,A004468,Kings Armoured Security Services Ltd
North West Leicestershire District Council,31UH,HLC,Leisure Centres,Hermitage Leisure Centre,Water Charges (Metered),18/12/2013,"1,457.21",1273515,A001468,Severn Trent Water Limited
North West Leicestershire District Council,31UH,ICT,Information Technology,ICT Services,Telephone Charge / Rental,18/12/2013,"5,436.18",1273521,A008908,Virgin Media Business
North West Leicestershire District Council,31UH,CULTIC,Leisure & Culture,Cultural Services TIC,Premises Rents,18/12/2013,537.50,1273554,A000950,Leicestershire County Council
North West Leicestershire District Council,31UH,EES,Environmental Health,Environmental Services,Grants,18/12/2013,"1,368.08",1273559,A001092,John Merison BMC Ltd
North West Leicestershire District Council,31UH,FINPLA,Finance,Financial Planning,Transport - Operating Leases,18/12/2013,"22,844.51",1273561,A030097,SG Equipment Finance Limited
North West Leicestershire District Council,31UH,FINPLA,Finance,Financial Planning,Transport - Operating Leases,18/12/2013,"9,263.79",1273562,A030097,SG Equipment Finance Limited
North West Leicestershire District Council,31UH,CULTIC,Leisure & Culture,Cultural Services TIC,Theatre Tickets,18/12/2013,637.20,1273564,A027431,Ashby Dramatic Society Trust
North West Leicestershire District Council,31UH,CULTIC,Leisure & Culture,Cultural Services TIC,Grant - Mantle Arts,18/12/2013,"3,500.00",1273566,A001039,Mantle Community Arts Limited
North West Leicestershire District Council,31UH,HRAHM,Housing,HRA Housing Management,Decent Homes Programme,18/12/2013,"38,518.59",1273579,A039980,Kier Services Maintenance East Ltd
North West Leicestershire District Council,31UH,HLC,Leisure Centres,Hermitage Leisure Centre,Electricity,18/12/2013,"2,722.51",1273580,A030266,Southern Electric
North West Leicestershire District Council,31UH,HPLC,Leisure Centres,Hood Park Leisure Centre,Electricity,18/12/2013,"1,168.43",1273581,A030266,Southern Electric
North West Leicestershire District Council,31UH,ECCTV,Planning & Development,Environment - Town Centre/CCTV,Electricity,18/12/2013,"1,295.24",1273582,A030266,Southern Electric
North West Leicestershire District Council,31UH,ECCTV,Planning & Development,Environment - Town Centre/CCTV,Water Charges (Metered),18/12/2013,"10,208.59",1273592,A001468,Severn Trent Water Limited
North West Leicestershire District Council,31UH,LDELC,Legal & Democratic,Electoral & Land Charges,Postages,18/12/2013,"5,706.36",1273514,A001418,Royal Mail Group Plc
North West Leicestershire District Council,31UH,HR,Corporate Director,Human Resources,Items To Be Leased,18/12/2013,"3,696.22",1273908,A039405,Inchcape Fleet Solutions
North West Leicestershire District Council,31UH,FINPLA,Finance,Financial Planning,Agency Staff,18/12/2013,"11,242.39",1273916,A036958,Comensura Limited
North West Leicestershire District Council,31UH,FINPLA,Finance,Financial Planning,Agency Staff,18/12/2013,"10,388.36",1273917,A036958,Comensura Limited
North West Leicestershire District Council,31UH,EPP,Planning & Development,Environment Planning Policy,Examination of Core Strategy,04/12/2013,"17,213.30",1272351,A030996,The Planning Inspectorate
North West Leicestershire District Council,31UH,PROPCL,Property Services,Property Commercial Lettings,Contract Cleaning,04/12/2013,506.18,1272372,A003037,Coalville Cleaning Services
North West Leicestershire District Council,31UH,HR,Corporate Director,Human Resources,Interim Support,04/12/2013,"1,990.35",1272401,A033121,Libby Carter Limited
North West Leicestershire District Council,31UH,HLC,Leisure Centres,Hermitage Leisure Centre,Water Treatment,04/12/2013,"1,008.06",1272413,A001591,Stowlin Ltd
North West Leicestershire District Council,31UH,HRAHM,Housing,HRA Housing Management,Contract Cleaning,04/12/2013,"5,766.20",1272089,A000950,Leicestershire County Council
North West Leicestershire District Council,31UH,HRAHM,Housing,HRA Housing Management,Contract Cleaning,04/12/2013,"5,713.64",1272090,A000950,Leicestershire County Council
North West Leicestershire District Council,31UH,ENOT,Street Management,Environment Transport,Transport Costs - Tyres,04/12/2013,"1,620.00",1272338,A035175,Malvern Tyres
North West Leicestershire District Council,31UH,ENOP,Street Management,Environment Parks,General Repairs,04/12/2013,940.00,1272340,A038270,F Woodward & Sons (Woodward Turfcare)
North West Leicestershire District Council,31UH,ENOT,Street Management,Environment Transport,Repairs - Parts,04/12/2013,"1,281.00",1272346,A025025,Municipal Vehicle Inspection Services Ltd
North West Leicestershire District Council,31UH,PROPFM,Property Services,Property Facilities Management,Expenditure against earmarked reserve,04/12/2013,"3,598.80",1272354,A031787,Laker BMS Ltd
North West Leicestershire District Council,31UH,PROPFM,Property Services,Property Facilities Management,Expenditure against earmarked reserve,04/12/2013,755.00,1272355,A031787,Laker BMS Ltd
North West Leicestershire District Council,31UH,HR,Corporate Director,Human Resources,Purchases,04/12/2013,"2,898.00",1272377,A038606,Premier Employer Solutions Limited
North West Leicestershire District Council,31UH,HRAHRM,Housing Repairs,HRA Housing Repairs & Maintenance,Training Expenses,04/12/2013,"1,240.00",1270235,A027792,Keith Cook Training Services
North West Leicestershire District Council,31UH,CULTEV,Leisure & Culture,Cultural Services Arts & Events,Town Centre Management - Christmas Dec,04/12/2013,791.00,1272404,A034118,Animal Enterprises
North West Leicestershire District Council,31UH,CULTEV,Leisure & Culture,Cultural Services Arts & Events,Other Miscellaneous Expenses,04/12/2013,508.00,1272415,A038988,Confetti Magic Ltd
North West Leicestershire District Council,31UH,ENOP,Street Management,Environment Parks,External Materials,04/12/2013,857.90,1272454,A034991,Sherriff Amenity
North West Leicestershire District Council,31UH,HOFI,Finance,Head of Finance,Shared Revs & Bens Partnership costs,04/12/2013,"17,197.00",1272456,A000770,Hinckley & Bosworth Borough Council
North West Leicestershire District Council,31UH,PROPFM,Property Services,Property Facilities Management,Equipment Operating Leases,04/12/2013,516.05,1272466,A032630,Pitney Bowes Finance Plc
North West Leicestershire District Council,31UH,ENOP,Street Management,Environment Parks,External Materials,04/12/2013,"2,148.29",1272068,A029800,R & N Plant Specialists
North West Leicestershire District Council,31UH,ENOP,Street Management,Environment Parks,General Repairs,04/12/2013,598.29,1272383,A008325,Palmar & Associates Ltd
North West Leicestershire District Council,31UH,ICT,Information Technology,ICT Services,Admin Equipment - Maintenance,04/12/2013,"1,635.63",1272451,A034753,ANS Group Plc
North West Leicestershire District Council,31UH,ECP,Planning & Development,Environment Community Planning,District Wide Activities,04/12/2013,700.00,1272482,A041008,UKDBA
North West Leicestershire District Council,31UH,EPP,Planning & Development,Environment Planning Policy,Examination of Core Strategy,04/12/2013,707.80,1272517,A038890,Planning Inquiry Administration Services
North West Leicestershire District Council,31UH,HRAPBS,Housing,HRA Performance & Business Support,Interim Support,04/12/2013,"3,750.00",1272529,A040578,Matthew Barney
North West Leicestershire District Council,31UH,PROPCL,Property Services,Property Commercial Lettings,Postages,04/12/2013,"2,389.75",1272543,A008204,Purchase Power
North West Leicestershire District Council,31UH,ESS,Street Management,Environment - Street Scene,DECC Funding,04/12/2013,"3,039.94",1272651,A040460,Sure Maintenance Ltd
North West Leicestershire District Council,31UH,HR,Corporate Director,Human Resources,Computing,04/12/2013,"9,950.00",1272670,A001395,Euro RSCG People T/A Havas People Ltd
North West Leicestershire District Council,31UH,CULTEV,Leisure & Culture,Cultural Services Arts & Events,Town Centre Management - Christmas Dec,04/12/2013,587.50,1272344,A040879,Sunshine Events UK Limited
North West Leicestershire District Council,31UH,CULTEV,Leisure & Culture,Cultural Services Arts & Events,Coalville Christmas Decorations,04/12/2013,"5,504.32",1272405,A023267,Turnock Ltd
North West Leicestershire District Council,31UH,CHEX,Chief Exec,Chief Executive,External Legal Fees & Advice,04/12/2013,685.50,1272478,A039356,Broadsted Associates Ltd
North West Leicestershire District Council,31UH,ICT,Information Technology,ICT Services,Consumable Materials,04/12/2013,568.81,1272479,A038178,Antalis Limited
North West Leicestershire District Council,31UH,HLC,Leisure Centres,Hermitage Leisure Centre,Contract Payments (Other) Ext,04/12/2013,"1,036.56",1272485,A001642,Technogym Uk Limited
North West Leicestershire District Council,31UH,ICT,Information Technology,ICT Services,Computing,04/12/2013,"1,470.00",1272518,A002190,Spectra Security Limited
North West Leicestershire District Council,31UH,HS,Housing Strategy,Community - Housing Strategy,Computing,04/12/2013,"6,000.00",1272546,A038507,Housing Partners Ltd
North West Leicestershire District Council,31UH,HR,Corporate Director,Human Resources,Employee Advertising- Internet,04/12/2013,"6,000.00",1272668,A018047,Jobs Go Public Resourcing  Limited
North West Leicestershire District Council,31UH,HR,Corporate Director,Human Resources,Operational Equipment,04/12/2013,"1,098.17",1272669,A040972,Simard Ltd T/A The Gourmet Society
North West Leicestershire District Council,31UH,HRAHRM,Housing Repairs,HRA Housing Repairs & Maintenance,Derv,11/12/2013,"14,740.75",1272480,A000951,Leicestershire County Council
North West Leicestershire District Council,31UH,ENOT,Street Management,Environment Transport,Scheduled Servicing - Parts,11/12/2013,868.16,1272740,A000486,Digraph Transport Supplies Ltd
North West Leicestershire District Council,31UH,HR,Corporate Director,Human Resources,Purchases,11/12/2013,525.00,1272797,A028625,Specsavers Corporate Eyecare
North West Leicestershire District Council,31UH,HRAOPS,Housing,HRA Older Persons Service,Alarm Equipment Repairs,11/12/2013,"1,473.99",1272807,A040630,Cirrus Communication Systems Ltd
North West Leicestershire District Council,31UH,CULTEV,Leisure & Culture,Cultural Services Arts & Events,Coalville Christmas Decorations,11/12/2013,"7,809.00",1272406,A023267,Turnock Ltd
North West Leicestershire District Council,31UH,SPA,Leisure & Culture,Sport & Physical Activity,Sports Awards,11/12/2013,992.00,1272698,A027592,Chameleon Pro Audio T/A Lux Technical Ltd
North West Leicestershire District Council,31UH,ENOT,Street Management,Environment Transport,Purchases,11/12/2013,937.05,1272727,A037391,Emo Oil Limited
North West Leicestershire District Council,31UH,ESS,Street Management,Environment - Street Scene,Recreation & Play Areas,11/12/2013,"1,918.00",1272747,A040992,Uniplay It's Educational Ltd
North West Leicestershire District Council,31UH,HPLC,Leisure Centres,Hood Park Leisure Centre,General Repairs,18/12/2013,712.04,1268044,A035493,Quadrant Security Group Limited
North West Leicestershire District Council,31UH,SPA,Leisure & Culture,Sport & Physical Activity,Active together 2,11/12/2013,"5,000.00",1272717,A000950,Leicestershire County Council
North West Leicestershire District Council,31UH,PROPFM,Property Services,Property Facilities Management,Town Centre Regeneration,11/12/2013,"1,560.00",1272758,A015236,G F Tomlinson Building Ltd
North West Leicestershire District Council,31UH,ENOT,Street Management,Environment Transport,Purchases,11/12/2013,722.38,1272773,A000625,Ford & Slater Group Ltd
North West Leicestershire District Council,31UH,HLC,Leisure Centres,Hermitage Leisure Centre,LSA - CLUB ACTIV8,11/12/2013,"1,140.00",1272785,A024642,Gladstone MRM Ltd
North West Leicestershire District Council,31UH,HLBC,Leisure Centres,Hermitage Bar & Catering,Catering Provisions,11/12/2013,586.89,1272791,A000218,Briers Butchers Limited
North West Leicestershire District Council,31UH,HR,Corporate Director,Human Resources,Employee Healthcare,11/12/2013,"3,060.00",1272796,A038840,Health Management Ltd
North West Leicestershire District Council,31UH,ICT,Information Technology,ICT Services,Admin Equipment - Maintenance,11/12/2013,591.77,1272805,A034753,ANS Group Plc
North West Leicestershire District Council,31UH,ESS,Street Management,Environment - Street Scene,Boiler Replacement,11/12/2013,"1,939.35",1273242,A040460,Sure Maintenance Ltd
North West Leicestershire District Council,31UH,ECCTV,Planning & Development,Environment - Town Centre/CCTV,Agency Staff,11/12/2013,"3,923.00",1273344,A038132,Premier Security Services (Midlands) Limited
North West Leicestershire District Council,31UH,HRAHRM,Housing Repairs,HRA Housing Repairs & Maintenance,General Materials,11/12/2013,"1,710.00",1272452,A040963,Greasley Electronics Ltd
North West Leicestershire District Council,31UH,ICT,Information Technology,ICT Services,Admin Equipment - Maintenance,11/12/2013,"7,615.00",1272736,A029908,Foursys Ltd
North West Leicestershire District Council,31UH,HPBC,Leisure Centres,Hood Park Bar and Catering,Catering Provisions,11/12/2013,579.15,1272865,A001264,Palmer Harvey Mclane Ltd
North West Leicestershire District Council,31UH,SPA,Leisure & Culture,Sport & Physical Activity,LSA - SPORTS AWARDS,11/12/2013,576.00,1272522,A000375,Coalville Trophy Centre
North West Leicestershire District Council,31UH,ICT,Information Technology,ICT Services,Computer Software Maintenance,11/12/2013,582.00,1273261,A039942,Icon Network Solutions Ltd
North West Leicestershire District Council,31UH,ESS,Street Management,Environment - Street Scene,Computer Software Maintenance,18/12/2013,"1,750.00",1271216,A035398,Chipside Limited
North West Leicestershire District Council,31UH,ECP,Planning & Development,Environment Community Planning,Sustainability,18/12/2013,"2,842.40",1272513,A037926,Cheviot Trees Limited
North West Leicestershire District Council,31UH,EDC,Planning & Development,Environment - Development Control,Advertising,18/12/2013,555.50,1273408,A001395,Euro RSCG People T/A Havas People Ltd
North West Leicestershire District Council,31UH,EDC,Planning & Development,Environment - Development Control,Advertising,18/12/2013,557.31,1273412,A001395,Euro RSCG People T/A Havas People Ltd
North West Leicestershire District Council,31UH,EDC,Planning & Development,Environment - Development Control,Advertising,18/12/2013,552.31,1273413,A001395,Euro RSCG People T/A Havas People Ltd
North West Leicestershire District Council,31UH,HRAHRM,Housing Repairs,HRA Housing Repairs & Maintenance,Computing,18/12/2013,950.00,1273429,A002968,Capita Business Services Ltd
North West Leicestershire District Council,31UH,HPLC,Leisure Centres,Hood Park Leisure Centre,Water Treatment,18/12/2013,530.12,1273435,A001591,Stowlin Ltd
North West Leicestershire District Council,31UH,HLC,Leisure Centres,Hermitage Leisure Centre,Charges - Miscellaneous Events,18/12/2013,"1,521.23",1273440,A008606,Leicestershire County Counc
North West Leicestershire District Council,31UH,EEHL,Environmental Health,Environmental Health & Licensing,Vet Inspection,18/12/2013,519.50,1273341,A033670,Eville And Jones Limited
North West Leicestershire District Council,31UH,ENOT,Street Management,Environment Transport,Purchases,18/12/2013,"19,717.37",1273398,A040946,Hall Fuels (Division of Watson Petroleum)
North West Leicestershire District Council,31UH,ENOT,Street Management,Environment Transport,Gas,18/12/2013,980.10,1273419,A032686,Calor Gas Limited
North West Leicestershire District Council,31UH,ENOT,Street Management,Environment Transport,Repairs - Parts,18/12/2013,500.00,1273422,A000522,Dennis Eagle Limited
North West Leicestershire District Council,31UH,CDCC,Leisure Centres,Castle Donington Community College,Alternative Fitness Suite,18/12/2013,505.72,1273454,A005413,Elliott Group Limited
North West Leicestershire District Council,31UH,PROPFM,Property Services,Property Facilities Management,General Repairs,18/12/2013,"1,621.00",1273462,A037013,Rentokil Initial UK Limited
North West Leicestershire District Council,31UH,ICT,Information Technology,ICT Services,Corporate PC Purchases,18/12/2013,"2,150.00",1273399,A001298,Phoenix Software Limited
North West Leicestershire District Council,31UH,HLC,Leisure Centres,Hermitage Leisure Centre,Service Contracts,18/12/2013,942.00,1273461,A037677,Sterling Hydrotech Limited
North West Leicestershire District Council,31UH,ECCTV,Planning & Development,Environment - Town Centre/CCTV,Advertising,18/12/2013,675.18,1273574,A001240,One Stop Promotions (Leics) Ltd
North West Leicestershire District Council,31UH,HRAPBS,Housing,HRA Performance & Business Support,Expenditure against earmarked reserve,18/12/2013,694.00,1273915,A032826,Freedom Communications (UK) Ltd
North West Leicestershire District Council,31UH,HRAHRM,Housing Repairs,HRA Housing Repairs & Maintenance,Greenhill,04/12/2013,500.00,1272549,A008757,Ksa Consulting Engineers Ltd
North West Leicestershire District Council,31UH,HRAHRM,Housing Repairs,HRA Housing Repairs & Maintenance,Eviction Of Tenants,04/12/2013,"2,198.00",1272551,A031086,Premier Waste and Recycling
North West Leicestershire District Council,31UH,HRAHRM,Housing Repairs,HRA Housing Repairs & Maintenance,Schedule of Rates ,04/12/2013,782.00,1272553,A031787,Laker BMS Ltd
North West Leicestershire District Council,31UH,HRAHRM,Housing Repairs,HRA Housing Repairs & Maintenance,Schedule of Rates ,04/12/2013,"1,478.90",1272555,A031787,Laker BMS Ltd
North West Leicestershire District Council,31UH,HRAHRM,Housing Repairs,HRA Housing Repairs & Maintenance,Gas Servicing,04/12/2013,"2,570.43",1272561,A033342,J Tomlinson Ltd
North West Leicestershire District Council,31UH,HRAHRM,Housing Repairs,HRA Housing Repairs & Maintenance,Gas Servicing,04/12/2013,"7,632.57",1272562,A033342,J Tomlinson Ltd
North West Leicestershire District Council,31UH,HRAHRM,Housing Repairs,HRA Housing Repairs & Maintenance,Painting,04/12/2013,"3,071.00",1272563,A035827,Novus Property Solutions Limited
North West Leicestershire District Council,31UH,HRAHRM,Housing Repairs,HRA Housing Repairs & Maintenance,Newbold Coleorton etc,04/12/2013,"2,022.15",1272564,A036741,SBP Limited (Trading as Plastal & Permadoor)
North West Leicestershire District Council,31UH,HRAHRM,Housing Repairs,HRA Housing Repairs & Maintenance,Coalville,04/12/2013,544.23,1272566,A036741,SBP Limited (Trading as Plastal & Permadoor)
North West Leicestershire District Council,31UH,HRAHRM,Housing Repairs,HRA Housing Repairs & Maintenance,Gas Servicing,04/12/2013,500.00,1272575,A033342,J Tomlinson Ltd
North West Leicestershire District Council,31UH,HRAHRM,Housing Repairs,HRA Housing Repairs & Maintenance,Gas Servicing,04/12/2013,"7,989.07",1272606,A033342,J Tomlinson Ltd
North West Leicestershire District Council,31UH,HRAHRM,Housing Repairs,HRA Housing Repairs & Maintenance,Gas Servicing,04/12/2013,"7,989.07",1272607,A033342,J Tomlinson Ltd
North West Leicestershire District Council,31UH,HRAHRM,Housing Repairs,HRA Housing Repairs & Maintenance,Painting,04/12/2013,"23,549.00",1272663,A035827,Novus Property Solutions Limited
North West Leicestershire District Council,31UH,HRAHRM,Housing Repairs,HRA Housing Repairs & Maintenance,Coalville,11/12/2013,580.00,1273136,A031086,Premier Waste and Recycling
North West Leicestershire District Council,31UH,HRAHRM,Housing Repairs,HRA Housing Repairs & Maintenance,Greenhill,11/12/2013,830.51,1273137,A031086,Premier Waste and Recycling
North West Leicestershire District Council,31UH,HRAHRM,Housing Repairs,HRA Housing Repairs & Maintenance,Schedule of Rates ,11/12/2013,"1,505.77",1273145,A031787,Laker BMS Ltd
North West Leicestershire District Council,31UH,HRAHRM,Housing Repairs,HRA Housing Repairs & Maintenance,Schedule of Rates ,11/12/2013,"1,095.69",1273148,A031787,Laker BMS Ltd
North West Leicestershire District Council,31UH,HRAHRM,Housing Repairs,HRA Housing Repairs & Maintenance,Solid fuel servicing,11/12/2013,570.18,1273234,A035675,Elite Sweep Service
North West Leicestershire District Council,31UH,HRAHRM,Housing Repairs,HRA Housing Repairs & Maintenance,Gas Servicing,11/12/2013,"1,202.75",1273264,A033342,J Tomlinson Ltd
North West Leicestershire District Council,31UH,HRAHRM,Housing Repairs,HRA Housing Repairs & Maintenance,Gas Servicing,11/12/2013,"1,202.75",1273265,A033342,J Tomlinson Ltd
North West Leicestershire District Council,31UH,HRAHRM,Housing Repairs,HRA Housing Repairs & Maintenance,Gas Servicing,11/12/2013,"1,202.75",1273266,A033342,J Tomlinson Ltd
North West Leicestershire District Council,31UH,HRAHRM,Housing Repairs,HRA Housing Repairs & Maintenance,Gas Servicing,11/12/2013,"1,202.75",1273267,A033342,J Tomlinson Ltd
North West Leicestershire District Council,31UH,HRAHRM,Housing Repairs,HRA Housing Repairs & Maintenance,Gas Servicing,11/12/2013,"1,202.75",1273268,A033342,J Tomlinson Ltd
North West Leicestershire District Council,31UH,HRAHRM,Housing Repairs,HRA Housing Repairs & Maintenance,Gas Servicing,11/12/2013,"1,202.75",1273269,A033342,J Tomlinson Ltd
North West Leicestershire District Council,31UH,HRAHRM,Housing Repairs,HRA Housing Repairs & Maintenance,Gas Servicing,11/12/2013,"1,202.75",1273270,A033342,J Tomlinson Ltd
North West Leicestershire District Council,31UH,HRAHRM,Housing Repairs,HRA Housing Repairs & Maintenance,Gas Servicing,11/12/2013,"1,202.75",1273272,A033342,J Tomlinson Ltd
North West Leicestershire District Council,31UH,HRAHRM,Housing Repairs,HRA Housing Repairs & Maintenance,Gas Servicing,11/12/2013,"1,202.75",1273273,A033342,J Tomlinson Ltd
North West Leicestershire District Council,31UH,HRAHRM,Housing Repairs,HRA Housing Repairs & Maintenance,Gas Servicing,11/12/2013,"1,202.75",1273274,A033342,J Tomlinson Ltd
North West Leicestershire District Council,31UH,HRAHRM,Housing Repairs,HRA Housing Repairs & Maintenance,Gas Servicing,11/12/2013,"1,202.75",1273275,A033342,J Tomlinson Ltd
North West Leicestershire District Council,31UH,HRAHRM,Housing Repairs,HRA Housing Repairs & Maintenance,Gas Servicing,11/12/2013,"1,202.75",1273276,A033342,J Tomlinson Ltd
North West Leicestershire District Council,31UH,HRAHRM,Housing Repairs,HRA Housing Repairs & Maintenance,Gas Servicing,11/12/2013,"1,202.75",1273277,A033342,J Tomlinson Ltd
North West Leicestershire District Council,31UH,HRAHRM,Housing Repairs,HRA Housing Repairs & Maintenance,Gas Servicing,11/12/2013,"1,202.75",1273278,A033342,J Tomlinson Ltd
North West Leicestershire District Council,31UH,HRAHRM,Housing Repairs,HRA Housing Repairs & Maintenance,Gas Servicing,11/12/2013,"1,202.75",1273279,A033342,J Tomlinson Ltd
North West Leicestershire District Council,31UH,HRAHRM,Housing Repairs,HRA Housing Repairs & Maintenance,Painting,11/12/2013,"9,642.00",1273280,A035827,Novus Property Solutions Limited
North West Leicestershire District Council,31UH,HRAHRM,Housing Repairs,HRA Housing Repairs & Maintenance,Gas Servicing,11/12/2013,"1,020.37",1273283,A033342,J Tomlinson Ltd
North West Leicestershire District Council,31UH,HRAHRM,Housing Repairs,HRA Housing Repairs & Maintenance,Coalville,18/12/2013,984.87,1273618,A031086,Premier Waste and Recycling
North West Leicestershire District Council,31UH,HRAHRM,Housing Repairs,HRA Housing Repairs & Maintenance,Gas Servicing,18/12/2013,518.40,1273620,A033342,J Tomlinson Ltd
North West Leicestershire District Council,31UH,HRAHRM,Housing Repairs,HRA Housing Repairs & Maintenance,Coalville,18/12/2013,960.00,1273621,A037013,Rentokil Initial UK Limited
North West Leicestershire District Council,31UH,HRAHRM,Housing Repairs,HRA Housing Repairs & Maintenance,Door installation ,18/12/2013,539.91,1273625,A038041,I G Doors Limited
North West Leicestershire District Council,31UH,HRAHRM,Housing Repairs,HRA Housing Repairs & Maintenance,Schedule of Rates ,18/12/2013,"1,350.00",1273629,A031787,Laker BMS Ltd
North West Leicestershire District Council,31UH,HRAHRM,Housing Repairs,HRA Housing Repairs & Maintenance,Schedule of Rates ,18/12/2013,"1,129.37",1273630,A031787,Laker BMS Ltd
North West Leicestershire District Council,31UH,HRAHRM,Housing Repairs,HRA Housing Repairs & Maintenance,Schedule of Rates ,18/12/2013,"5,632.40",1273631,A031787,Laker BMS Ltd
North West Leicestershire District Council,31UH,HRAHRM,Housing Repairs,HRA Housing Repairs & Maintenance,Schedule of Rates ,18/12/2013,"2,155.67",1273632,A031787,Laker BMS Ltd
North West Leicestershire District Council,31UH,HRAHRM,Housing Repairs,HRA Housing Repairs & Maintenance,Schedule of Rates ,18/12/2013,683.94,1273637,A031787,Laker BMS Ltd
North West Leicestershire District Council,31UH,HRAHRM,Housing Repairs,HRA Housing Repairs & Maintenance,Schedule of Rates ,18/12/2013,573.87,1273649,A031787,Laker BMS Ltd
North West Leicestershire District Council,31UH,HRAHRM,Housing Repairs,HRA Housing Repairs & Maintenance,Painting,18/12/2013,535.37,1273825,A035827,Novus Property Solutions Limited
North West Leicestershire District Council,31UH,HRAHRM,Housing Repairs,HRA Housing Repairs & Maintenance,Painting,18/12/2013,"1,443.00",1273909,A035827,Novus Property Solutions Limited
North West Leicestershire District Council,31UH,HRAHRM,Housing Repairs,HRA Housing Repairs & Maintenance,Measham,18/12/2013,622.33,1273926,A026237,British Gas Trading Limited
North West Leicestershire District Council,31UH,HRAHRM,Housing Repairs,HRA Housing Repairs & Maintenance,Whitwick,18/12/2013,"2,076.29",1273927,A036741,SBP Limited (Trading as Plastal & Permadoor)
North West Leicestershire District Council,31UH,HRAHRM,Housing Repairs,HRA Housing Repairs & Maintenance,Decent Homes Programme,18/12/2013,"2,892.92",1273929,A039973,Lovell Partnerships Ltd
North West Leicestershire District Council,31UH,HRAHRM,Housing Repairs,HRA Housing Repairs & Maintenance,Decent Homes Programme,18/12/2013,"2,892.92",1273930,A039973,Lovell Partnerships Ltd
North West Leicestershire District Council,31UH,HRAHRM,Housing Repairs,HRA Housing Repairs & Maintenance,Decent Homes Programme,18/12/2013,"2,663.87",1273931,A039973,Lovell Partnerships Ltd
North West Leicestershire District Council,31UH,HRAHRM,Housing Repairs,HRA Housing Repairs & Maintenance,Decent Homes Programme,18/12/2013,"2,892.92",1273932,A039973,Lovell Partnerships Ltd
North West Leicestershire District Council,31UH,HRAHRM,Housing Repairs,HRA Housing Repairs & Maintenance,Decent Homes Programme,18/12/2013,"2,663.87",1273933,A039973,Lovell Partnerships Ltd
North West Leicestershire District Council,31UH,HRAHRM,Housing Repairs,HRA Housing Repairs & Maintenance,Decent Homes Programme,18/12/2013,"2,892.92",1273934,A039973,Lovell Partnerships Ltd
North West Leicestershire District Council,31UH,HRAHRM,Housing Repairs,HRA Housing Repairs & Maintenance,Decent Homes Programme,18/12/2013,"2,892.92",1273935,A039973,Lovell Partnerships Ltd
North West Leicestershire District Council,31UH,HRAHRM,Housing Repairs,HRA Housing Repairs & Maintenance,Decent Homes Programme,18/12/2013,"2,892.92",1273936,A039973,Lovell Partnerships Ltd
North West Leicestershire District Council,31UH,HRAHRM,Housing Repairs,HRA Housing Repairs & Maintenance,Decent Homes Programme,18/12/2013,"2,892.92",1273937,A039973,Lovell Partnerships Ltd
North West Leicestershire District Council,31UH,HRAHRM,Housing Repairs,HRA Housing Repairs & Maintenance,Decent Homes Programme,18/12/2013,"2,663.87",1273938,A039973,Lovell Partnerships Ltd
North West Leicestershire District Council,31UH,HRAHRM,Housing Repairs,HRA Housing Repairs & Maintenance,Decent Homes Programme,18/12/2013,"2,892.92",1273939,A039973,Lovell Partnerships Ltd
North West Leicestershire District Council,31UH,HRAHRM,Housing Repairs,HRA Housing Repairs & Maintenance,Decent Homes Programme,18/12/2013,"2,892.92",1273940,A039973,Lovell Partnerships Ltd
North West Leicestershire District Council,31UH,HRAHRM,Housing Repairs,HRA Housing Repairs & Maintenance,Decent Homes Programme,18/12/2013,"2,892.92",1273941,A039973,Lovell Partnerships Ltd
North West Leicestershire District Council,31UH,HRAHRM,Housing Repairs,HRA Housing Repairs & Maintenance,Decent Homes Programme,18/12/2013,"2,892.92",1273942,A039973,Lovell Partnerships Ltd
North West Leicestershire District Council,31UH,HRAHRM,Housing Repairs,HRA Housing Repairs & Maintenance,Decent Homes Programme,18/12/2013,"2,892.92",1273943,A039973,Lovell Partnerships Ltd
North West Leicestershire District Council,31UH,HRAHRM,Housing Repairs,HRA Housing Repairs & Maintenance,Decent Homes Programme,18/12/2013,"2,663.87",1273944,A039973,Lovell Partnerships Ltd
North West Leicestershire District Council,31UH,HRAHRM,Housing Repairs,HRA Housing Repairs & Maintenance,Decent Homes Programme,18/12/2013,"2,663.87",1273945,A039973,Lovell Partnerships Ltd
North West Leicestershire District Council,31UH,HRAHRM,Housing Repairs,HRA Housing Repairs & Maintenance,Decent Homes Programme,18/12/2013,"2,434.88",1273946,A039973,Lovell Partnerships Ltd
North West Leicestershire District Council,31UH,HRAHRM,Housing Repairs,HRA Housing Repairs & Maintenance,Decent Homes Programme,18/12/2013,"2,892.92",1273947,A039973,Lovell Partnerships Ltd
North West Leicestershire District Council,31UH,HRAHRM,Housing Repairs,HRA Housing Repairs & Maintenance,Decent Homes Programme,18/12/2013,"2,892.92",1273948,A039973,Lovell Partnerships Ltd
North West Leicestershire District Council,31UH,HRAHRM,Housing Repairs,HRA Housing Repairs & Maintenance,Decent Homes Programme,18/12/2013,"2,892.92",1273949,A039973,Lovell Partnerships Ltd
North West Leicestershire District Council,31UH,HRAHRM,Housing Repairs,HRA Housing Repairs & Maintenance,Decent Homes Programme,18/12/2013,"2,892.92",1273950,A039973,Lovell Partnerships Ltd
North West Leicestershire District Council,31UH,HRAHRM,Housing Repairs,HRA Housing Repairs & Maintenance,Decent Homes Programme,18/12/2013,"2,234.56",1273951,A039980,Kier Services Maintenance East Ltd
North West Leicestershire District Council,31UH,HRAHRM,Housing Repairs,HRA Housing Repairs & Maintenance,Decent Homes Programme,18/12/2013,"16,984.71",1273952,A039980,Kier Services Maintenance East Ltd
North West Leicestershire District Council,31UH,HRAHRM,Housing Repairs,HRA Housing Repairs & Maintenance,Decent Homes Programme,18/12/2013,759.50,1273953,A039980,Kier Services Maintenance East Ltd
North West Leicestershire District Council,31UH,HRAHRM,Housing Repairs,HRA Housing Repairs & Maintenance,Decent Homes Programme,18/12/2013,"6,049.83",1273954,A039980,Kier Services Maintenance East Ltd
North West Leicestershire District Council,31UH,HRAHRM,Housing Repairs,HRA Housing Repairs & Maintenance,Decent Homes Programme,18/12/2013,"5,049.00",1273955,A039980,Kier Services Maintenance East Ltd
North West Leicestershire District Council,31UH,HRAHRM,Housing Repairs,HRA Housing Repairs & Maintenance,Decent Homes Programme,18/12/2013,"1,681.51",1273957,A039980,Kier Services Maintenance East Ltd
North West Leicestershire District Council,31UH,HRAHRM,Housing Repairs,HRA Housing Repairs & Maintenance,Gas Servicing,18/12/2013,"9,745.89",1273983,A033342,J Tomlinson Ltd
